{"text_format":"1","workbook":"xlsx","n_sheets":10,"sheets":["Instructions","Student Info","Data Entry","Graphs Aug-Sept.","Graphs Oct.-Dec.","Graphs Jan.-Feb.","Graphs March-Apr.","Graphs May-June","Hidden 2","Hidden Info"],"not_rendered":{"charts":150,"images":4,"macros":1,"external_links":0,"defined_names":19,"comments":0,"pivot_tables":0},"unopened":[],"bounds":{"document_bytes":16777216,"sheet_cells":100000,"rows_first":2000,"rows_last":500,"rows_between":2000,"halvings":0,"cell_chars":16384,"cell_head_chars":4096},"cells_cut":0,"cells_raw":0,"read":"whole","date_system":"1900"}

{"sheet":"Instructions","index":0,"n_rows":15,"n_cols":6,"rows_kept":15,"cut":false,"hidden":false,"merged":[[0,2,1,7],[9,1,11,8],[8,1,8,8],[7,1,7,8],[12,1,13,8]]}
[null,null," "]
[]
[]
[]
[null,null,null,null,null,"Activity 1: Student Identification Worksheet"]
[]
["Instructions:"]
["1.","Click on the \"Student Info\" tab."]
["2.","As a team, identify the data sources your school will use to identify students in need of Tier 2 supports. Several common data sources are listed, but all of them do not have to be used.  Up to three additional data sources may be added. Type the name of the data source in columns L, M, or N (row 1)."]
["3.","Complete the relevent information for each student. Several columns have drop-down menus to keep information organized and make it easier to sort the list of students to identify common needs."]
[]
[]
["4.","To view students with common needs, filter the columns by clicking the arrow next to the column name. This will temporarily remove students who don't share the specified characteristic. To see the student names again, remove the filter. To sort the information without hiding student names, click on Excel's \"Data\" ribbon and select all of the data on the Student Info tab. Then click \"Sort.\""]
[]
["5.","Return to the worksheet to complete the information for other columns at any time."]

{"sheet":"Student Info","index":1,"n_rows":33,"n_cols":39,"rows_kept":33,"cut":false,"hidden":false,"merged":[]}
[]
[]
["#","Student\nName",null,"All Teachers Taught Expectations","Student Received Rewards","#ODRs","# Minors","#\nAbsences","#\nTardies","Above/Below\nGrade Level?","GPA",null,null,null,"Primary Need/\nReferral Concern","Secondary Need/\nReferral Concern","Total # Individuals Recommending Services for Student","Possible Function \nof Behavior","Grade","Gender","Ethnicity","ESE Status",null,null,null,null,null,null,null,null,null,null,null,null,"Tier 2\nIntervention\n#1","Tier 2\nIntervention\n#2","Tier 2\nIntervention \n#3","Tier 2\nIntervention\n#4","Overall Tier 2\nResponse"]
[1]
[2]
[3]
[4]
[5]
[6]
[7]
[8]
[9]
[10]
[11]
[12]
[13]
[14]
[15]
[16]
[17]
[18]
[19]
[20]
[21]
[22]
[23]
[24]
[25]
[26]
[27]
[28]
[29]
[30]

{"sheet":"Data Entry","index":2,"n_rows":317,"n_cols":32,"rows_kept":317,"cut":false,"hidden":false,"merged":[[8,20,8,23],[8,14,8,17],[8,26,8,29],[8,3,8,6],[8,8,8,11]]}
[]
[null,null,null,null,"Percentage Calculator",null,null,null,null,"Percentage Calculator",null,null,null,null,null,"Percentage Calculator",null,null,null,null,null,"Percentage Calculator",null,null,null,null,null,"Percentage Calculator"]
[null,null,null,"Enter total # of\npoints POSSIBLE",null,"Enter total # of\npoints EARNED",null,null,"Enter total # of\npoints POSSIBLE",null,"Enter total # of\npoints EARNED",null,null,null,"Enter total # of\npoints POSSIBLE",null,"Enter total # of\npoints EARNED",null,null,null,"Enter total # of\npoints POSSIBLE",null,"Enter total # of\npoints EARNED",null,null,null,"Enter total # of\npoints POSSIBLE",null,"Enter total # of\npoints EARNED"]
[null,null,null,"here:",100,"here:",50,null,"here:",100,"here:",50,null,null,"here:",100,"here:",50,null,null,"here:",100,"here:",50,null,null,"here:",100,"here:",50]
[]
[null,null,null,null,"Percent Total Points =",{"$f":"G4/E4","v":0.5},null,null,null,"Percent Total Points =",{"$f":"L4/J4","v":0.5},null,null,null,null,"Percent Total Points =",{"$f":"R4/P4","v":0.5},null,null,null,null,"Percent Total Points =",{"$f":"X4/V4","v":0.5},null,null,null,null,"Percent Total Points =",{"$f":"AD4/AB4","v":0.5}]
[]
[]
[null,null,null,"Remember to SAVE your work!",null,null,null,null,"Remember to SAVE your work!",null,null,null,null,null,"Remember to SAVE your work!",null,null,null,null,null,"Remember to SAVE your work!",null,null,null,null,null,"Remember to SAVE your work!"]
[null,null,{"$f":"'Student Info'!$B$4","v":0},{"$f":"'Student Info'!$B$5","v":0},{"$f":"'Student Info'!$B$6","v":0},{"$f":"'Student Info'!$B$7","v":0},{"$f":"'Student Info'!$B$8","v":0},{"$f":"'Student Info'!$B$9","v":0},{"$f":"'Student Info'!$B$10","v":0},{"$f":"'Student Info'!$B$11","v":0},{"$f":"'Student Info'!$B$12","v":0},{"$f":"'Student Info'!$B$13","v":0},{"$f":"'Student Info'!$B$14","v":0},{"$f":"'Student Info'!$B$15","v":0},{"$f":"'Student Info'!$B$16","v":0},{"$f":"'Student Info'!$B$17","v":0},{"$f":"'Student Info'!$B$18","v":0},{"$f":"'Student Info'!$B$19","v":0},{"$f":"'Student Info'!$B$20","v":0},{"$f":"'Student Info'!$B$21","v":0},{"$f":"'Student Info'!$B$22","v":0},{"$f":"'Student Info'!$B$23","v":0},{"$f":"'Student Info'!$B$24","v":0},{"$f":"'Student Info'!$B$25","v":0},{"$f":"'Student Info'!$B$26","v":0},{"$f":"'Student Info'!$B$27","v":0},{"$f":"'Student Info'!$B$28","v":0},{"$f":"'Student Info'!$B$29","v":0},{"$f":"'Student Info'!$B$30","v":0},{"$f":"'Student Info'!$B$31","v":0},{"$f":"'Student Info'!$B$32","v":0},{"$f":"'Student Info'!$B$33","v":0}]
[null,"DATE","Percent Total Points","Percent Total Points","Percent Total Points","Percent Total Points","Percent Total Points","Percent Total Points","Percent Total Points","Percent Total Points","Percent Total Points","Percent Total Points","Percent Total Points","Percent Total Points","Percent Total Points","Percent Total Points","Percent Total Points","Percent Total Points","Percent Total Points","Percent Total Points","Percent Total Points","Percent Total Points","Percent Total Points","Percent Total Points","Percent Total Points","Percent Total Points","Percent Total Points","Percent Total Points","Percent Total Points","Percent Total Points","Percent Total Points","Percent Total Points"]
[null,"2013-08-08"]
[null,"2013-08-09"]
[null,"2013-08-10"]
[null,"2013-08-11"]
[null,"2013-08-12"]
[null,"2013-08-13"]
[null,"2013-08-14"]
[null,"2013-08-15"]
[null,"2013-08-16"]
[null,"2013-08-17"]
[null,"2013-08-18"]
[null,"2013-08-19"]
[null,"2013-08-20"]
[null,"2013-08-21"]
[null,"2013-08-22"]
[null,"2013-08-23"]
[null,"2013-08-24"]
[null,"2013-08-25"]
[null,"2013-08-26"]
[null,"2013-08-27"]
[null,"2013-08-28"]
[null,"2013-08-29"]
[null,"2013-08-30"]
[null,"2013-08-31"]
[null,"2013-09-01"]
[null,"2013-09-02"]
[null,"2013-09-03"]
[null,"2013-09-04"]
[null,"2013-09-05"]
[null,"2013-09-06"]
[null,"2013-09-07"]
[null,"2013-09-08"]
[null,"2013-09-09"]
[null,"2013-09-10"]
[null,"2013-09-11"]
[null,"2013-09-12"]
[null,"2013-09-13"]
[null,"2013-09-14"]
[null,"2013-09-15"]
[null,"2013-09-16"]
[null,"2013-09-17"]
[null,"2013-09-18"]
[null,"2013-09-19"]
[null,"2013-09-20"]
[null,"2013-09-21"]
[null,"2013-09-22"]
[null,"2013-09-23"]
[null,"2013-09-24"]
[null,"2013-09-25"]
[null,"2013-09-26"]
[null,"2013-09-27"]
[null,"2013-09-28"]
[null,"2013-09-29"]
[null,"2013-09-30"]
[null,"2013-10-01"]
[null,"2013-10-02"]
[null,"2013-10-03"]
[null,"2013-10-04"]
[null,"2013-10-05"]
[null,"2013-10-06"]
[null,"2013-10-07"]
[null,"2013-10-08"]
[null,"2013-10-09"]
[null,"2013-10-10"]
[null,"2013-10-11"]
[null,"2013-10-12"]
[null,"2013-10-13"]
[null,"2013-10-14"]
[null,"2013-10-15"]
[null,"2013-10-16"]
[null,"2013-10-17"]
[null,"2013-10-18"]
[null,"2013-10-19"]
[null,"2013-10-20"]
[null,"2013-10-21"]
[null,"2013-10-22"]
[null,"2013-10-23"]
[null,"2013-10-24"]
[null,"2013-10-25"]
[null,"2013-10-26"]
[null,"2013-10-27"]
[null,"2013-10-28"]
[null,"2013-10-29"]
[null,"2013-10-30"]
[null,"2013-10-31"]
[null,"2013-11-01"]
[null,"2013-11-02"]
[null,"2013-11-03"]
[null,"2013-11-04"]
[null,"2013-11-05"]
[null,"2013-11-06"]
[null,"2013-11-07"]
[null,"2013-11-08"]
[null,"2013-11-09"]
[null,"2013-11-10"]
[null,"2013-11-11"]
[null,"2013-11-12"]
[null,"2013-11-13"]
[null,"2013-11-14"]
[null,"2013-11-15"]
[null,"2013-11-16"]
[null,"2013-11-17"]
[null,"2013-11-18"]
[null,"2013-11-19"]
[null,"2013-11-20"]
[null,"2013-11-21"]
[null,"2013-11-22"]
[null,"2013-11-23"]
[null,"2013-11-24"]
[null,"2013-11-25"]
[null,"2013-11-26"]
[null,"2013-11-27"]
[null,"2013-11-28"]
[null,"2013-11-29"]
[null,"2013-11-30"]
[null,"2013-12-01"]
[null,"2013-12-02"]
[null,"2013-12-03"]
[null,"2013-12-04"]
[null,"2013-12-05"]
[null,"2013-12-06"]
[null,"2013-12-07"]
[null,"2013-12-08"]
[null,"2013-12-09"]
[null,"2013-12-10"]
[null,"2013-12-11"]
[null,"2013-12-12"]
[null,"2013-12-13"]
[null,"2013-12-14"]
[null,"2013-12-15"]
[null,"2013-12-16"]
[null,"2013-12-17"]
[null,"2013-12-18"]
[null,"2013-12-19"]
[null,"2013-12-20"]
[null,"2013-12-21"]
[null,"2013-12-22"]
[null,"2013-12-23"]
[null,"2013-12-24"]
[null,"2013-12-25"]
[null,"2013-12-26"]
[null,"2013-12-27"]
[null,"2013-12-28"]
[null,"2013-12-29"]
[null,"2013-12-30"]
[null,"2013-12-31"]
[null,"2014-01-01"]
[null,"2014-01-02"]
[null,"2014-01-03"]
[null,"2014-01-04"]
[null,"2014-01-05"]
[null,"2014-01-06"]
[null,"2014-01-07"]
[null,"2014-01-08"]
[null,"2014-01-09"]
[null,"2014-01-10"]
[null,"2014-01-11"]
[null,"2014-01-12"]
[null,"2014-01-13"]
[null,"2014-01-14"]
[null,"2014-01-15"]
[null,"2014-01-16"]
[null,"2014-01-17"]
[null,"2014-01-18"]
[null,"2014-01-19"]
[null,"2014-01-20"]
[null,"2014-01-21"]
[null,"2014-01-22"]
[null,"2014-01-23"]
[null,"2014-01-24"]
[null,"2014-01-25"]
[null,"2014-01-26"]
[null,"2014-01-27"]
[null,"2014-01-28"]
[null,"2014-01-29"]
[null,"2014-01-30"]
[null,"2014-01-31"]
[null,"2014-02-01"]
[null,"2014-02-02"]
[null,"2014-02-03"]
[null,"2014-02-04"]
[null,"2014-02-05"]
[null,"2014-02-06"]
[null,"2014-02-07"]
[null,"2014-02-08"]
[null,"2014-02-09"]
[null,"2014-02-10"]
[null,"2014-02-11"]
[null,"2014-02-12"]
[null,"2014-02-13"]
[null,"2014-02-14"]
[null,"2014-02-15"]
[null,"2014-02-16"]
[null,"2014-02-17"]
[null,"2014-02-18"]
[null,"2014-02-19"]
[null,"2014-02-20"]
[null,"2014-02-21"]
[null,"2014-02-22"]
[null,"2014-02-23"]
[null,"2014-02-24"]
[null,"2014-02-25"]
[null,"2014-02-26"]
[null,"2014-02-27"]
[null,"2014-02-28"]
[null,"2014-03-01"]
[null,"2014-03-02"]
[null,"2014-03-03"]
[null,"2014-03-04"]
[null,"2014-03-05"]
[null,"2014-03-06"]
[null,"2014-03-07"]
[null,"2014-03-08"]
[null,"2014-03-09"]
[null,"2014-03-10"]
[null,"2014-03-11"]
[null,"2014-03-12"]
[null,"2014-03-13"]
[null,"2014-03-14"]
[null,"2014-03-15"]
[null,"2014-03-16"]
[null,"2014-03-17"]
[null,"2014-03-18"]
[null,"2014-03-19"]
[null,"2014-03-20"]
[null,"2014-03-21"]
[null,"2014-03-22"]
[null,"2014-03-23"]
[null,"2014-03-24"]
[null,"2014-03-25"]
[null,"2014-03-26"]
[null,"2014-03-27"]
[null,"2014-03-28"]
[null,"2014-03-29"]
[null,"2014-03-30"]
[null,"2014-03-31"]
[null,"2014-04-01"]
[null,"2014-04-02"]
[null,"2014-04-03"]
[null,"2014-04-04"]
[null,"2014-04-05"]
[null,"2014-04-06"]
[null,"2014-04-07"]
[null,"2014-04-08"]
[null,"2014-04-09"]
[null,"2014-04-10"]
[null,"2014-04-11"]
[null,"2014-04-12"]
[null,"2014-04-13"]
[null,"2014-04-14"]
[null,"2014-04-15"]
[null,"2014-04-16"]
[null,"2014-04-17"]
[null,"2014-04-18"]
[null,"2014-04-19"]
[null,"2014-04-20"]
[null,"2014-04-21"]
[null,"2014-04-22"]
[null,"2014-04-23"]
[null,"2014-04-24"]
[null,"2014-04-25"]
[null,"2014-04-26"]
[null,"2014-04-27"]
[null,"2014-04-28"]
[null,"2014-04-29"]
[null,"2014-04-30"]
[null,"2014-05-01"]
[null,"2014-05-02"]
[null,"2014-05-03"]
[null,"2014-05-04"]
[null,"2014-05-05"]
[null,"2014-05-06"]
[null,"2014-05-07"]
[null,"2014-05-08"]
[null,"2014-05-09"]
[null,"2014-05-10"]
[null,"2014-05-11"]
[null,"2014-05-12"]
[null,"2014-05-13"]
[null,"2014-05-14"]
[null,"2014-05-15"]
[null,"2014-05-16"]
[null,"2014-05-17"]
[null,"2014-05-18"]
[null,"2014-05-19"]
[null,"2014-05-20"]
[null,"2014-05-21"]
[null,"2014-05-22"]
[null,"2014-05-23"]
[null,"2014-05-24"]
[null,"2014-05-25"]
[null,"2014-05-26"]
[null,"2014-05-27"]
[null,"2014-05-28"]
[null,"2014-05-29"]
[null,"2014-05-30"]
[null,"2014-05-31"]
[null,"2014-06-01"]
[null,"2014-06-02"]
[null,"2014-06-03"]
[null,"2014-06-04"]
[null,"2014-06-05"]
[null,"2014-06-06"]
[null,"2014-06-07"]
[null,"2014-06-08"]
[null,"2014-06-09"]

{"sheet":"Graphs Aug-Sept.","index":3,"n_rows":4,"n_cols":10,"rows_kept":4,"cut":false,"hidden":false,"merged":[[1,1,1,10],[3,9,3,12]]}
[]
[null,"Adjust the red goal line by clicking the line and dragging it to the desired level"]
[]
[null,null,null,null,null,null,null,null,null,"Remember to SAVE your work!"]

{"sheet":"Graphs Oct.-Dec.","index":4,"n_rows":4,"n_cols":10,"rows_kept":4,"cut":false,"hidden":false,"merged":[[1,1,1,10],[3,9,3,12]]}
[]
[null,"Adjust the red goal line by clicking the line and dragging it to the desired level"]
[]
[null,null,null,null,null,null,null,null,null,"Remember to SAVE your work!"]

{"sheet":"Graphs Jan.-Feb.","index":5,"n_rows":4,"n_cols":10,"rows_kept":4,"cut":false,"hidden":false,"merged":[[1,1,1,10],[3,9,3,12]]}
[]
[null,"Adjust the red goal line by clicking the line and dragging it to the desired level"]
[]
[null,null,null,null,null,null,null,null,null,"Remember to SAVE your work!"]

{"sheet":"Graphs March-Apr.","index":6,"n_rows":4,"n_cols":10,"rows_kept":4,"cut":false,"hidden":false,"merged":[[1,1,1,10],[3,9,3,12]]}
[]
[null,"Adjust the red goal line by clicking the line and dragging it to the desired level"]
[]
[null,null,null,null,null,null,null,null,null,"Remember to SAVE your work!"]

{"sheet":"Graphs May-June","index":7,"n_rows":4,"n_cols":10,"rows_kept":4,"cut":false,"hidden":false,"merged":[[1,1,1,10],[3,9,3,12]]}
[]
[null,"Adjust the red goal line by clicking the line and dragging it to the desired level"]
[]
[null,null,null,null,null,null,null,null,null,"Remember to SAVE your work!"]

{"sheet":"Hidden 2","index":8,"n_rows":10,"n_cols":1,"rows_kept":10,"cut":false,"hidden":true,"merged":[]}
["Strong Postive"]
["Slow Positive"]
["Flat"]
["Slow Negative"]
["Strong Negative"]
[]
[]
["Above"]
["At"]
["Below"]

{"sheet":"Hidden Info","index":9,"n_rows":31,"n_cols":9,"rows_kept":31,"cut":false,"hidden":true,"merged":[]}
[]
[null,null,null,null,null,null,null,null,"EXTERNALIZING"]
[null,"M",null,null,null,"Y","Multiple Teachers",null,"Abusive/Inappropriate Language/Profanity"]
[null,"F",null,"White",null,"N","Teacher",null,"Defiance/Disrespect/Insubordination/Non-Compliance"]
[null,null,null,"Black",null,null,"Data Review",null,"Disruption"]
[null,null,null,"Hispanic",null,null,"Support Staff",null,"Fighting/Physical Aggression"]
[null,null,null,"Asian",null,null,"Administrator",null,"Forgery/Theft"]
[null,null,null,"Native Am.",null,null,"Parent",null,"Gang Affiliation"]
[null,null,null,"Pac.Islander/Nat. Haw.",null,null,"Other",null,"Harrassment/Bullying (Instigator)"]
[null,null,null,null,null,null,"None",null,"Harrassment/Bullying (Victim)"]
[null,null,null,null,null,null,null,null,"Harrassment/Bullying (Instigator & Victim)"]
[null,null,null,null,null,null,null,null,"Inappropriate Display of Affection"]
[null,"To Get Item/Activities",null,null,"Above",null,null,null,"Lying/Cheating"]
[null,"To Get Peer Attention",null,null,"Below",null,null,null,"Property Damage/Vandalism"]
[null,"To Get Adult Attention",null,null,null,null,null,null,"Use/Possession of Alcohol or Drugs"]
[null,"To Avoid Tasks/Activities",null,null,null,null,null,null,"Use/Possession of Weapons"]
[null,"To Avoid Peers",null,null,null,null,null,null,"INTERNALIZING"]
[null,"To Avoid Adults",null,null,null,null,null,null,"Anxiety/Nervous/Fearful"]
[null,"Other Motivation",null,null,null,null,null,null,"Anger Management"]
[null,null,null,null,null,null,null,null,"Depression/Withdrawal"]
[null,null,null,null,null,null,null,null,"Loneliness"]
[null,null,null,null,null,null,null,null,"Self-Esteem Issues"]
[null,null,null,null,null,null,null,null,"Grief/Loss of Loved One"]
[null,null,null,null,null,null,null,null,"Personal/Family Crisis"]
[null,null,null,null,null,null,null,null,"Somatic Complaints"]
[null,null,null,null,null,null,null,null,"Unmotivated"]
[null,null,null,null,null,null,null,null,"OTHER"]
[null,null,null,null,null,null,null,null,"Academic"]
[null,null,null,null,null,null,null,null,"Absenteeism/Skipping/Truancy"]
[null,null,null,null,null,null,null,null,"Tardy"]
[null,null,null,null,null,null,null,null,"NONE"]